[Event "ESP-ch Rapid 2018"]
[Site "Linares"]
[Date "2018.08.19"]
[Round "7"]
[White "Guadamuro Torrente, Anabel"]
[Black "Matnadze, Ana"]
[Result "0-1"]
[ECO "B13"]
[WhiteElo "2145"]
[BlackElo "2378"]
[Annotator "NA"]
[PlyCount "75"]
[EventDate "2018.08.19"]
[EventType "team-tourn"]
[EventCountry "ESP"]
[SourceTitle "playchess.com"]
[Source "ChessBase"]
[SourceQuality "1"]
[TimeControl "900+5"]

1. e4 {[%emt 0:00:00]} c6 {[%emt 0:00:00]} 2. d4 {[%emt 0:00:03]} d5 {[%emt 0:00:00]} 3. exd5 {[%emt 0:00:03]} cxd5 {[%emt 0:00:00]} 4. Bd3 {[%emt 0:00:02]} Nc6 {[%emt 0:00:01]} 5. c3 {[%emt 0:00:02]} Nf6 {[%emt 0:00:02]} 6. Nf3 {[%emt 0:00:04]} g6 {[%emt 0:00:02]} 7. O-O {[%emt 0:00:09]} Bg7 {[%emt 0:00:03]} 8. Bf4 {[%emt 0:00:25]} O-O {[%emt 0:00:02]} 9. h3 {[%emt 0:00:08]} Ne8 {[%emt 0:00:04]} 10. Re1 {[%emt 0:00:42]} Nd6 {[%emt 0:00:03]} 11. Nbd2 {[%emt 0:00:17]} f6 {[%emt 0:00:08]} 12. Qb3 {[%emt 0:01:55]} Nf7 {[%emt 0:00:13]} 13. Bg3 {[%emt 0:00:58]} e5 {[%emt 0:00:07]} 14. dxe5 {[%emt 0:01:29]} fxe5 {[%emt 0:00:02]} 15. Bb5 {[%emt 0:00:36]} e4 {[%emt 0:00:17]} 16. Bxc6 {[%emt 0:01:25]} bxc6 {[%emt 0:00:05]} 17. Nd4 {[%emt 0:00:02]} Bd7 {[%emt 0:00:51]} 18. Nf1 {[%emt 0:02:40]} h5 {[%emt 0:00:20]} 19. Qb7 {[%emt 0:00:35]} Qc8 {[%emt 0:00:20]} 20. Qxc8 {[%emt 0:00:11]} Rfxc8 {[%emt 0:00:08]} 21. Ne3 {[%emt 0:00:04]} a5 {[%emt 0:01:17]} 22. Rad1 {[%emt 0:00:17]} a4 {[%emt 0:01:27]} 23. c4 {[%emt 0:01:17]} c5 {[%emt 0:00:04]} 24. Nb5 {[%emt 0:02:07]} d4 {[%emt 0:00:15]} 25. Nd5 {[%emt 0:00:13]} Bf5 {[%emt 0:00:20]} 26. Nd6 {[%emt 0:00:53]} Nxd6 {[%emt 0:00:18]} 27. Bxd6 {[%emt 0:00:02]} Ra7 {[%emt 0:02:03]} 28. Ne7+ {[%emt 0:00:13]} Rxe7 {[%emt 0:00:02]} 29. Bxe7 {[%emt 0:00:01]} d3 {[%emt 0:01:00]} 30. b3 {[%emt 0:00:07]} axb3 {[%emt 0:00:16]} 31. axb3 {[%emt 0:00:01]} Bc3 {[%emt 0:00:01]} 32. Rf1 {[%emt 0:00:09]} Bd4 {[%emt 0:00:02]} 33. Bg5 {[%emt 0:00:09]} Rb8 {[%emt 0:00:06]} 34. Be3 {[%emt 0:00:02]} Rxb3 {[%emt 0:00:21]} 35. Rb1 {[%emt 0:00:27]} Rc3 {[%emt 0:00:03]} 36. Rfc1 {[%emt 0:00:02]} Ra3 {[%emt 0:01:06]} 37. Rb7 {[%emt 0:00:01]} Be6 {[%emt 0:00:35]} 38. Re7 0-1

[Event "ESP-ch Rapid 2018"]
[Site "Linares"]
[Date "2018.08.19"]
[Round "7"]
[White "Galvez Extremera, Francisco"]
[Black "Orantes Taboada, Francisco"]
[Result "0-1"]
[ECO "B21"]
[WhiteElo "2142"]
[BlackElo "2242"]
[Annotator "NA"]
[PlyCount "110"]
[EventDate "2018.08.19"]
[EventType "team-tourn"]
[EventCountry "ESP"]
[SourceTitle "playchess.com"]
[Source "ChessBase"]
[SourceQuality "1"]
[TimeControl "900+5"]

1. e4 {[%emt 0:00:00]} c5 {[%emt 0:00:00]} 2. d4 {[%emt 0:00:00]} cxd4 3. c3 {[%emt 0:00:01]} d3 {[%emt 0:00:00]} 4. Bxd3 {[%emt 0:00:03]} g6 {[%emt 0:00:01]} 5. Nf3 {[%emt 0:00:37]} Bg7 {[%emt 0:00:02]} 6. c4 {[%emt 0:00:07]} Nc6 {[%emt 0:00:04]} 7. O-O {[%emt 0:00:08]} d6 {[%emt 0:00:01]} 8. Nc3 {[%emt 0:00:17]} Nf6 {[%emt 0:00:02]} 9. Bg5 {[%emt 0:02:15]} O-O {[%emt 0:00:05]} 10. Rc1 {[%emt 0:00:18]} Nd7 {[%emt 0:00:29]} 11. b3 {[%emt 0:00:20]} Nc5 {[%emt 0:01:33]} 12. Bb1 {[%emt 0:00:52]} Bg4 {[%emt 0:00:49]} 13. h3 {[%emt 0:00:05]} Be6 {[%emt 0:00:11]} 14. Qd2 {[%emt 0:00:21]} Re8 {[%emt 0:00:16]} 15. Rfd1 {[%emt 0:00:17]} Qd7 {[%emt 0:00:47]} 16. Qf4 {[%emt 0:00:29]} a5 {[%emt 0:00:31]} 17. Bh6 {[%emt 0:00:51]} Bh8 {[%emt 0:00:10]} 18. Nd5 {[%emt 0:00:20]} Bxd5 {[%emt 0:00:09]} 19. Rxd5 {[%emt 0:00:28]} a4 {[%emt 0:00:53]} 20. Ng5 {[%emt 0:00:29]} f6 {[%emt 0:00:25]} 21. Nf3 {[%emt 0:02:52]} axb3 {[%emt 0:01:15]} 22. axb3 {[%emt 0:00:01]} Nxb3 {[%emt 0:00:01]} 23. Rcd1 {[%emt 0:00:02]} Qe6 {[%emt 0:00:08]} 24. Rb5 {[%emt 0:01:50]} Qxc4 {[%emt 0:00:46]} 25. Bd3 {[%emt 0:00:18]} Qf7 {[%emt 0:00:46]} 26. e5 {[%emt 0:00:32]} dxe5 {[%emt 0:00:43]} 27. Qe4 {[%emt 0:00:56]} Nbd4 {[%emt 0:00:19]} 28. Nxd4 {[%emt 0:00:09]} Nxd4 {[%emt 0:00:02]} 29. Rxb7 {[%emt 0:00:07]} Rac8 {[%emt 0:00:36]} 30. Be3 {[%emt 0:00:31]} f5 {[%emt 0:00:03]} 31. Qh4 {[%emt 0:00:11]} Bf6 {[%emt 0:00:04]} 32. Qh6 {[%emt 0:00:06]} Bg7 {[%emt 0:00:06]} 33. Qh4 {[%emt 0:00:06]} Bf6 {[%emt 0:00:21]} 34. Qh6 {[%emt 0:00:01]} Red8 {[%emt 0:00:07]} 35. Rc1 {[%emt 0:00:48]} Rxc1+ {[%emt 0:00:48]} 36. Bxc1 {[%emt 0:00:01]} e4 {[%emt 0:00:11]} 37. Bf1 {[%emt 0:00:14]} Qd5 {[%emt 0:00:10]} 38. Rc7 {[%emt 0:00:29]} Ne6 {[%emt 0:00:09]} 39. Bc4 {[%emt 0:00:03]} Qd1+ {[%emt 0:00:05]} 40. Kh2 {[%emt 0:00:02]} Qd6+ {[%emt 0:00:02]} 41. g3 {[%emt 0:00:02]} Qxc7 {[%emt 0:00:13]} 42. Bxe6+ {[%emt 0:00:02]} Kh8 {[%emt 0:00:01]} 43. Be3 {[%emt 0:00:08]} Qe5 {[%emt 0:00:12]} 44. Bf7 {[%emt 0:00:04]} Bg7 {[%emt 0:00:01]} 45. Qg5 {[%emt 0:00:17]} Qf6 {[%emt 0:00:03]} 46. Qxf6 {[%emt 0:00:11]} Bxf6 {[%emt 0:00:01]} 47. h4 {[%emt 0:00:04]} Kg7 {[%emt 0:00:01]} 48. Be6 {[%emt 0:00:02]} Rd6 {[%emt 0:00:01]} 49. Bc4 {[%emt 0:00:01]} Bd4 {[%emt 0:00:01]} 50. Bf4 {[%emt 0:00:02]} Rc6 {[%emt 0:00:02]} 51. Bd5 {[%emt 0:00:01]} Rc2 {[%emt 0:00:01]} 52. h5 {[%emt 0:00:07]} Rxf2+ {[%emt 0:00:09]} 53. Kh3 {[%emt 0:00:00]} Kf6 {[%emt 0:00:04]} 54. h6 {[%emt 0:00:04]} g5 {[%emt 0:00:04]} 55. Bc7 {[%emt 0:00:03]} g4+ {[%emt 0:00:05]} 0-1

[Event "ESP-ch Rapid 2018"]
[Site "Linares"]
[Date "2018.08.19"]
[Round "7"]
[White "Iglesias Leon, Francisco J"]
[Black "Rodrigo Yanguas, Maria"]
[Result "0-1"]
[ECO "A05"]
[WhiteElo "2129"]
[BlackElo "2062"]
[Annotator "NA"]
[PlyCount "86"]
[EventDate "2018.08.19"]
[EventType "team-tourn"]
[EventCountry "ESP"]
[SourceTitle "playchess.com"]
[Source "ChessBase"]
[SourceQuality "1"]
[TimeControl "900+5"]

1. Nf3 {[%emt 0:00:00]} Nf6 {[%emt 0:00:07]} 2. b3 {[%emt 0:00:00]} g6 {[%emt 0:00:09]} 3. Bb2 {[%emt 0:00:00]} Bg7 {[%emt 0:00:00]} 4. g3 {[%emt 0:00:02]} O-O 5. Bg2 {[%emt 0:00:02]} d6 {[%emt 0:00:03]} 6. d4 {[%emt 0:00:02]} c5 {[%emt 0:00:12]} 7. e3 {[%emt 0:00:17]} Nc6 {[%emt 0:00:16]} 8. O-O {[%emt 0:00:05]} Bf5 {[%emt 0:00:44]} 9. c4 {[%emt 0:00:45]} Rc8 {[%emt 0:00:44]} 10. Nc3 {[%emt 0:00:02]} Ne4 {[%emt 0:00:25]} 11. Nd5 {[%emt 0:01:36]} Qd7 {[%emt 0:00:30]} 12. Nd2 {[%emt 0:00:27]} Ng5 {[%emt 0:00:23]} 13. h4 {[%emt 0:01:43]} Nh3+ {[%emt 0:01:27]} 14. Kh2 {[%emt 0:00:02]} cxd4 {[%emt 0:00:01]} 15. exd4 {[%emt 0:00:06]} Nxd4 {[%emt 0:00:06]} 16. Nxe7+ {[%emt 0:00:24]} Qxe7 {[%emt 0:00:10]} 17. Bxh3 {[%emt 0:00:03]} Bxh3 {[%emt 0:00:18]} 18. Kxh3 {[%emt 0:00:02]} g5 {[%emt 0:00:37]} 19. hxg5 {[%emt 0:00:52]} Qxg5 {[%emt 0:00:11]} 20. Bxd4 {[%emt 0:00:58]} Bxd4 {[%emt 0:00:03]} 21. Rc1 {[%emt 0:00:05]} Bg7 {[%emt 0:02:01]} 22. Ne4 {[%emt 0:00:44]} Qf5+ {[%emt 0:00:08]} 23. Qg4 {[%emt 0:00:03]} Qxg4+ {[%emt 0:00:01]} 24. Kxg4 {[%emt 0:00:01]} f5+ {[%emt 0:00:01]} 25. Kf3 {[%emt 0:00:34]} fxe4+ {[%emt 0:00:01]} 26. Kxe4 {[%emt 0:00:01]} Rce8+ {[%emt 0:00:02]} 27. Kd5 {[%emt 0:00:29]} Re5+ {[%emt 0:00:06]} 28. Kxd6 {[%emt 0:00:02]} Rd8+ {[%emt 0:00:31]} 29. Kc7 {[%emt 0:00:05]} Rde8 {[%emt 0:00:52]} 30. Kxb7 {[%emt 0:01:51]} R8e7+ {[%emt 0:00:01]} 31. Kc6 {[%emt 0:00:02]} R7e6+ {[%emt 0:00:13]} 32. Kd7 {[%emt 0:00:02]} Re7+ {[%emt 0:00:41]} 33. Kc6 {[%emt 0:00:02]} Bf8 {[%emt 0:00:35]} 34. Rcd1 {[%emt 0:00:23]} R7e6+ {[%emt 0:00:05]} 35. Kd7 {[%emt 0:00:08]} Rb6 {[%emt 0:00:24]} 36. Rfe1 {[%emt 0:00:06]} Rg5 {[%emt 0:00:26]} 37. Kc8 {[%emt 0:00:41]} Rc5+ {[%emt 0:00:30]} 38. Kd8 {[%emt 0:00:34]} a5 {[%emt 0:00:35]} 39. Re4 {[%emt 0:00:52]} Rb7 {[%emt 0:00:35]} 40. Rd5 {[%emt 0:00:30]} Rcc7 {[%emt 0:00:24]} 41. Rg5+ {[%emt 0:01:08]} Kh8 {[%emt 0:00:15]} 42. Rf5 {[%emt 0:00:29]} Be7+ {[%emt 0:00:46]} 43. Ke8 {[%emt 0:00:03]} Bf6 0-1

[Event "ESP-ch Rapid 2018"]
[Site "Linares"]
[Date "2018.08.19"]
[Round "7"]
[White "Perdomo Araujo, Angel Eduardo"]
[Black "Alvarez Serrano, Carlos"]
[Result "0-1"]
[ECO "B91"]
[WhiteElo "2100"]
[BlackElo "2225"]
[Annotator "NA"]
[PlyCount "116"]
[EventDate "2018.08.19"]
[EventType "team-tourn"]
[EventCountry "ESP"]
[SourceTitle "playchess.com"]
[Source "ChessBase"]
[SourceQuality "1"]
[TimeControl "900+5"]

1. e4 {[%emt 0:00:00]} c5 {[%emt 0:00:00]} 2. Nf3 {[%emt 0:00:00]} d6 {[%emt 0:00:00]} 3. Nc3 {[%emt 0:00:00]} Nf6 {[%emt 0:00:00]} 4. d4 {[%emt 0:00:00]} cxd4 {[%emt 0:00:00]} 5. Nxd4 {[%emt 0:00:00]} a6 {[%emt 0:00:00]} 6. g3 {[%emt 0:00:03]} e5 {[%emt 0:00:05]} 7. Nb3 {[%emt 0:00:01]} Be6 {[%emt 0:00:02]} 8. Bg2 {[%emt 0:00:01]} Nbd7 {[%emt 0:00:09]} 9. O-O {[%emt 0:00:02]} Rc8 {[%emt 0:00:02]} 10. h3 {[%emt 0:00:18]} b5 {[%emt 0:00:09]} 11. Be3 {[%emt 0:00:15]} Nb6 {[%emt 0:00:05]} 12. Bxb6 {[%emt 0:00:39]} Qxb6 {[%emt 0:00:02]} 13. Nd5 {[%emt 0:00:01]} Nxd5 {[%emt 0:00:13]} 14. exd5 {[%emt 0:00:02]} Bf5 {[%emt 0:00:01]} 15. c3 {[%emt 0:00:01]} Be7 {[%emt 0:00:08]} 16. Kh2 {[%emt 0:00:32]} O-O {[%emt 0:00:32]} 17. Qe2 {[%emt 0:00:01]} a5 {[%emt 0:00:04]} 18. f4 Bd7 {[%emt 0:00:44]} 19. fxe5 {[%emt 0:00:27]} dxe5 {[%emt 0:00:01]} 20. Qxe5 {[%emt 0:00:22]} Bd6 {[%emt 0:00:01]} 21. Qd4 {[%emt 0:00:40]} Qb8 {[%emt 0:00:04]} 22. Qf2 {[%emt 0:00:14]} h5 {[%emt 0:00:12]} 23. h4 {[%emt 0:00:08]} Qc7 {[%emt 0:00:27]} 24. Nd4 {[%emt 0:00:44]} Qd8 {[%emt 0:00:03]} 25. Kh1 {[%emt 0:00:25]} Qc7 {[%emt 0:00:00]} 26. Ne2 {[%emt 0:00:23]} Rce8 {[%emt 0:00:25]} 27. Rae1 {[%emt 0:00:27]} Re5 {[%emt 0:00:17]} 28. Nf4 {[%emt 0:00:59]} Rf5 {[%emt 0:00:01]} 29. Re4 {[%emt 0:00:35]} Re8 {[%emt 0:00:32]} 30. Rxe8+ {[%emt 0:00:18]} Bxe8 {[%emt 0:00:01]} 31. Qe2 {[%emt 0:00:10]} Re5 {[%emt 0:00:24]} 32. Qd1 {[%emt 0:00:20]} g6 {[%emt 0:00:01]} 33. Qd3 {[%emt 0:00:12]} Kg7 {[%emt 0:00:25]} 34. Qf3 {[%emt 0:00:43]} Qe7 {[%emt 0:00:25]} 35. a3 {[%emt 0:00:28]} Bd7 {[%emt 0:00:06]} 36. Qf2 {[%emt 0:00:16]} Bg4 {[%emt 0:00:19]} 37. Qb6 {[%emt 0:00:22]} Re1 {[%emt 0:00:19]} 38. Ne6+ fxe6 {[%emt 0:00:22]} 39. Rxe1 {[%emt 0:00:21]} Bxg3 {[%emt 0:00:01]} 40. Qd4+ e5 41. Qe3 {[%emt 0:01:51]} Qxh4+ {[%emt 0:00:24]} 42. Kg1 {[%emt 0:00:01]} Bxe1 {[%emt 0:00:31]} 43. Qxe5+ {[%emt 0:00:01]} Kh7 {[%emt 0:00:28]} 44. Qc7+ {[%emt 0:00:06]} Kg8 {[%emt 0:00:48]} 45. Qb8+ {[%emt 0:00:03]} Kf7 {[%emt 0:00:06]} 46. Qc7+ {[%emt 0:00:02]} Qe7 {[%emt 0:00:05]} 47. Qf4+ {[%emt 0:00:49]} Kg7 {[%emt 0:00:01]} 48. d6 {[%emt 0:00:07]} Qf6 {[%emt 0:00:01]} 49. Qe3 {[%emt 0:00:13]} Bh4 {[%emt 0:00:15]} 50. Qa7+ {[%emt 0:00:56]} Qf7 {[%emt 0:00:12]} 51. Qd4+ {[%emt 0:00:23]} Kh7 {[%emt 0:00:25]} 52. Bc6 {[%emt 0:00:15]} Bf6 {[%emt 0:00:37]} 53. Qc5 {[%emt 0:00:41]} b4 {[%emt 0:00:45]} 54. axb4 {[%emt 0:00:29]} axb4 {[%emt 0:00:01]} 55. Qxb4 {[%emt 0:00:16]} Qe6 {[%emt 0:00:13]} 56. Qf4 {[%emt 0:01:25]} Be5 {[%emt 0:00:20]} 57. Qe3 {[%emt 0:01:00]} Bh2+ {[%emt 0:00:06]} 58. Kf2 {[%emt 0:00:01]} Bg1+ {[%emt 0:00:02]} 0-1

[Event "ESP-ch Rapid 2018"]
[Site "Linares"]
[Date "2018.08.19"]
[Round "7"]
[White "Arroyo Rodriguez, Jesus"]
[Black "Cuesta Bustos, Raul"]
[Result "1/2-1/2"]
[ECO "A05"]
[WhiteElo "2099"]
[BlackElo "2126"]
[Annotator "NA"]
[PlyCount "72"]
[EventDate "2018.08.19"]
[EventType "team-tourn"]
[EventCountry "ESP"]
[SourceTitle "playchess.com"]
[Source "ChessBase"]
[SourceQuality "1"]
[TimeControl "900+5"]

1. Nf3 {[%emt 0:00:00]} Nf6 {[%emt 0:00:00]} 2. g3 {[%emt 0:00:00]} g6 {[%emt 0:00:08]} 3. b3 {[%emt 0:00:00]} Bg7 {[%emt 0:00:02]} 4. Bb2 {[%emt 0:00:00]} d6 {[%emt 0:00:12]} 5. Bg2 {[%emt 0:00:21]} Nc6 {[%emt 0:00:01]} 6. d4 {[%emt 0:00:39]} Bf5 {[%emt 0:00:59]} 7. Nh4 {[%emt 0:00:46]} Bd7 {[%emt 0:00:26]} 8. d5 {[%emt 0:02:17]} Ne5 {[%emt 0:00:33]} 9. Qc1 {[%emt 0:03:42]} c6 {[%emt 0:01:30]} 10. f4 {[%emt 0:00:17]} Neg4 {[%emt 0:00:55]} 11. h3 {[%emt 0:00:18]} Nh6 {[%emt 0:00:06]} 12. e4 {[%emt 0:02:34]} e6 {[%emt 0:03:38]} 13. c4 {[%emt 0:00:13]} cxd5 {[%emt 0:00:10]} 14. exd5 {[%emt 0:01:08]} exd5 {[%emt 0:00:55]} 15. Bxd5 {[%emt 0:00:37]} O-O {[%emt 0:00:20]} 16. Bf3 {[%emt 0:01:02]} Re8+ {[%emt 0:00:03]} 17. Kf1 {[%emt 0:00:03]} Nf5 {[%emt 0:00:43]} 18. Nxf5 {[%emt 0:00:14]} Bxf5 {[%emt 0:00:01]} 19. Nd2 {[%emt 0:00:24]} Ne4 {[%emt 0:01:13]} 20. Kg2 {[%emt 0:00:48]} Bxb2 {[%emt 0:00:29]} 21. Qxb2 {[%emt 0:00:01]} Qa5 {[%emt 0:00:36]} 22. Nxe4 {[%emt 0:00:25]} Bxe4 {[%emt 0:00:03]} 23. Rad1 {[%emt 0:00:04]} Bxf3+ {[%emt 0:02:57]} 24. Kxf3 {[%emt 0:00:01]} Re6 {[%emt 0:00:00]} 25. Qd2 {[%emt 0:00:02]} Qc5 {[%emt 0:00:23]} 26. Qd4 {[%emt 0:00:07]} Qc6+ {[%emt 0:00:08]} 27. Qd5 {[%emt 0:00:08]} Qa6 {[%emt 0:00:01]} 28. Rd2 {[%emt 0:00:17]} Rae8 {[%emt 0:00:02]} 29. Rhd1 {[%emt 0:00:07]} Qb6 {[%emt 0:00:33]} 30. Qd4 {[%emt 0:00:06]} Qc6+ {[%emt 0:00:01]} 31. Qd5 {[%emt 0:00:02]} Qb6 {[%emt 0:00:01]} 32. Qd4 Re3+ 33. Kg2 Re2+ 34. Kf1 Qc6 35. Qd5 Qxd5 36. cxd5 R2e3 1/2-1/2

[Event "ESP-ch Rapid 2018"]
[Site "Linares"]
[Date "2018.08.19"]
[Round "7"]
[White "Collado Barbas, Laura"]
[Black "Guerrero Romero, Antonio"]
[Result "1-0"]
[ECO "D36"]
[WhiteElo "2095"]
[BlackElo "1895"]
[Annotator "NA"]
[PlyCount "96"]
[EventDate "2018.08.19"]
[EventType "team-tourn"]
[EventCountry "ESP"]
[SourceTitle "playchess.com"]
[Source "ChessBase"]
[SourceQuality "1"]
[TimeControl "900+5"]

1. d4 {[%emt 0:00:00]} Nf6 {[%emt 0:00:00]} 2. c4 {[%emt 0:00:00]} d5 {[%emt 0:00:03]} 3. Nc3 {[%emt 0:00:03]} e6 {[%emt 0:00:02]} 4. cxd5 {[%emt 0:00:04]} exd5 {[%emt 0:00:06]} 5. Bg5 {[%emt 0:00:03]} c6 {[%emt 0:00:01]} 6. Qc2 {[%emt 0:00:02]} Be7 {[%emt 0:00:40]} 7. e3 {[%emt 0:00:02]} Nbd7 {[%emt 0:00:04]} 8. Bd3 {[%emt 0:00:02]} h6 {[%emt 0:00:12]} 9. Bh4 {[%emt 0:00:02]} Nf8 {[%emt 0:00:01]} 10. Nge2 {[%emt 0:00:07]} Nh5 {[%emt 0:01:24]} 11. Bxe7 {[%emt 0:00:40]} Qxe7 {[%emt 0:00:01]} 12. O-O {[%emt 0:00:09]} Nf6 {[%emt 0:01:21]} 13. Rae1 {[%emt 0:00:26]} Be6 {[%emt 0:00:45]} 14. a3 {[%emt 0:00:04]} N8d7 {[%emt 0:00:34]} 15. b4 {[%emt 0:00:16]} O-O {[%emt 0:00:14]} 16. Nf4 {[%emt 0:00:24]} Qd6 {[%emt 0:01:23]} 17. Nxe6 {[%emt 0:00:49]} Qxe6 {[%emt 0:00:01]} 18. Bf5 {[%emt 0:00:14]} Qd6 {[%emt 0:00:09]} 19. Na4 {[%emt 0:01:03]} Rfe8 {[%emt 0:00:28]} 20. Nc5 {[%emt 0:00:31]} b6 {[%emt 0:01:55]} 21. Nxd7 {[%emt 0:00:24]} Nxd7 {[%emt 0:00:01]} 22. Rc1 {[%emt 0:00:03]} Rac8 {[%emt 0:00:02]} 23. Qa4 {[%emt 0:00:07]} Rc7 {[%emt 0:00:03]} 24. Rc2 {[%emt 0:00:38]} g6 {[%emt 0:00:27]} 25. Bd3 {[%emt 0:00:04]} Re6 {[%emt 0:00:09]} 26. Rfc1 {[%emt 0:00:10]} Kg7 {[%emt 0:00:39]} 27. Rc3 {[%emt 0:00:49]} f5 {[%emt 0:00:16]} 28. Qc2 {[%emt 0:00:48]} Rf6 {[%emt 0:00:31]} 29. g3 {[%emt 0:00:10]} h5 {[%emt 0:00:07]} 30. Bb5 {[%emt 0:01:38]} Nb8 {[%emt 0:00:35]} 31. Bf1 {[%emt 0:00:03]} h4 {[%emt 0:00:22]} 32. gxh4 {[%emt 0:01:25]} f4 {[%emt 0:00:02]} 33. exf4 {[%emt 0:00:36]} Qxf4 {[%emt 0:00:04]} 34. Rg3 {[%emt 0:00:10]} Qxh4 {[%emt 0:00:50]} 35. Bd3 {[%emt 0:00:24]} Qxd4 {[%emt 0:01:10]} 36. Bxg6 {[%emt 0:00:17]} Kf8 {[%emt 0:00:06]} 37. Re1 {[%emt 0:00:25]} Re7 {[%emt 0:00:13]} 38. Rxe7 {[%emt 0:01:01]} Kxe7 {[%emt 0:00:01]} 39. Re3+ {[%emt 0:00:18]} Kd6 {[%emt 0:00:02]} 40. Bh5 {[%emt 0:00:39]} Nd7 {[%emt 0:00:36]} 41. Qh7 {[%emt 0:01:25]} Qf4 {[%emt 0:00:35]} 42. Qe7+ {[%emt 0:01:11]} Kc7 {[%emt 0:00:02]} 43. Bf3 {[%emt 0:00:15]} Rg6+ {[%emt 0:00:24]} 44. Kf1 {[%emt 0:00:20]} Qxh2 {[%emt 0:00:29]} 45. Ke2 {[%emt 0:00:15]} Qd6 {[%emt 0:00:18]} 46. Qe8 {[%emt 0:00:04]} d4 {[%emt 0:00:46]} 47. Re7 {[%emt 0:00:07]} d3+ {[%emt 0:00:20]} 48. Kd2 {[%emt 0:00:04]} Qf4+ 1-0

[Event "ESP-ch Rapid 2018"]
[Site "Linares"]
[Date "2018.08.19"]
[Round "7"]
[White "Razola, Garcia Joaquin"]
[Black "Calzetta Ruiz, Monica"]
[Result "0-1"]
[ECO "B21"]
[WhiteElo "2087"]
[BlackElo "2302"]
[Annotator "NA"]
[PlyCount "84"]
[EventDate "2018.08.19"]
[EventType "team-tourn"]
[EventCountry "ESP"]
[SourceTitle "playchess.com"]
[Source "ChessBase"]
[SourceQuality "1"]
[TimeControl "900+5"]

1. e4 {[%emt 0:00:00]} c5 {[%emt 0:00:00]} 2. d4 {[%emt 0:00:00]} cxd4 {[%emt 0:00:00]} 3. c3 {[%emt 0:00:00]} dxc3 {[%emt 0:00:00]} 4. Nxc3 {[%emt 0:00:00]} Nc6 {[%emt 0:00:05]} 5. Bc4 {[%emt 0:00:01]} e6 {[%emt 0:00:01]} 6. Nf3 {[%emt 0:00:01]} Nge7 {[%emt 0:00:05]} 7. O-O {[%emt 0:00:03]} Ng6 {[%emt 0:00:02]} 8. Qe2 {[%emt 0:00:05]} Be7 {[%emt 0:00:06]} 9. g3 {[%emt 0:00:04]} O-O {[%emt 0:00:06]} 10. Rd1 {[%emt 0:00:09]} a6 {[%emt 0:00:06]} 11. e5 {[%emt 0:00:28]} b5 {[%emt 0:00:11]} 12. Bb3 {[%emt 0:00:03]} Bb7 {[%emt 0:00:02]} 13. h4 {[%emt 0:00:28]} b4 {[%emt 0:04:02]} 14. Na4 {[%emt 0:00:42]} Qc7 {[%emt 0:00:48]} 15. Bf4 {[%emt 0:00:02]} Nxf4 {[%emt 0:00:15]} 16. gxf4 {[%emt 0:00:02]} Rad8 {[%emt 0:01:29]} 17. Rac1 {[%emt 0:00:09]} Qa5 {[%emt 0:00:18]} 18. Qe4 {[%emt 0:01:37]} Ba8 {[%emt 0:00:47]} 19. Ng5 {[%emt 0:01:02]} g6 {[%emt 0:00:24]} 20. Qe3 {[%emt 0:01:32]} h6 {[%emt 0:02:32]} 21. Ne4 {[%emt 0:00:31]} Nxe5 {[%emt 0:00:02]} 22. fxe5 {[%emt 0:02:24]} Qxe5 {[%emt 0:00:02]} 23. Nac5 {[%emt 0:00:50]} Bxh4 {[%emt 0:00:26]} 24. Qxh6 {[%emt 0:01:52]} Be7 {[%emt 0:00:44]} 25. f3 {[%emt 0:00:55]} d5 {[%emt 0:00:26]} 26. Nd3 {[%emt 0:00:51]} Qb8 {[%emt 0:00:06]} 27. Ng5 {[%emt 0:00:06]} Qg3+ {[%emt 0:00:02]} 28. Kf1 {[%emt 0:00:13]} Bxg5 {[%emt 0:00:03]} 29. Qh1 {[%emt 0:00:16]} d4 {[%emt 0:00:27]} 30. Qg2 {[%emt 0:00:24]} Qxf3+ {[%emt 0:00:15]} 31. Qxf3 {[%emt 0:00:10]} Bxf3 {[%emt 0:00:02]} 32. Nxb4 {[%emt 0:00:09]} Bxc1 {[%emt 0:00:49]} 33. Rxc1 {[%emt 0:00:02]} d3 {[%emt 0:00:06]} 34. Rc3 {[%emt 0:00:50]} Be2+ {[%emt 0:00:15]} 35. Kf2 {[%emt 0:00:04]} Kg7 {[%emt 0:00:02]} 36. Nc6 {[%emt 0:00:22]} Rd6 {[%emt 0:00:11]} 37. Ne5 {[%emt 0:00:42]} Kf6 {[%emt 0:00:31]} 38. Nc4 {[%emt 0:00:08]} Rd4 {[%emt 0:00:11]} 39. Ke3 {[%emt 0:00:22]} Rfd8 {[%emt 0:00:13]} 40. Nd2 {[%emt 0:00:14]} g5 {[%emt 0:00:22]} 41. Rc1 {[%emt 0:00:10]} g4 {[%emt 0:00:12]} 42. Rg1 {[%emt 0:00:12]} Ke7 {[%emt 0:00:05] Kxd4} 0-1

[Event "ESP-ch Rapid 2018"]
[Site "Linares"]
[Date "2018.08.19"]
[Round "7"]
[White "Fernandez Diaz, Ignacio"]
[Black "Beltran De Heredia E, Miguel"]
[Result "1/2-1/2"]
[ECO "B61"]
[WhiteElo "2071"]
[BlackElo "2229"]
[Annotator "NA"]
[PlyCount "54"]
[EventDate "2018.08.19"]
[EventType "team-tourn"]
[EventCountry "ESP"]
[SourceTitle "playchess.com"]
[Source "ChessBase"]
[SourceQuality "1"]
[TimeControl "900+5"]

1. e4 {[%emt 0:00:00]} c5 {[%emt 0:00:00]} 2. Nf3 {[%emt 0:00:00]} d6 {[%emt 0:00:00]} 3. d4 {[%emt 0:00:00]} cxd4 {[%emt 0:00:00]} 4. Nxd4 {[%emt 0:00:00]} Nf6 {[%emt 0:00:00]} 5. Nc3 {[%emt 0:00:01]} Nc6 {[%emt 0:00:02]} 6. Bg5 {[%emt 0:00:12]} Bd7 {[%emt 0:00:02]} 7. Qd2 {[%emt 0:00:36]} Rc8 {[%emt 0:00:01]} 8. Bxf6 {[%emt 0:00:13]} gxf6 {[%emt 0:00:02]} 9. f4 {[%emt 0:00:14]} Nxd4 {[%emt 0:00:30]} 10. Qxd4 {[%emt 0:00:02]} Qa5 {[%emt 0:00:12]} 11. Bd3 {[%emt 0:00:58]} h5 {[%emt 0:01:15]} 12. O-O {[%emt 0:00:53]} Qc5 {[%emt 0:00:06]} 13. Qxc5 {[%emt 0:00:06]} Rxc5 {[%emt 0:00:01]} 14. Nd5 {[%emt 0:00:56]} h4 {[%emt 0:02:09]} 15. b4 {[%emt 0:00:09]} Rc8 {[%emt 0:00:04]} 16. c4 {[%emt 0:00:15]} Bg7 {[%emt 0:00:57]} 17. f5 {[%emt 0:00:46]} Bh6 {[%emt 0:00:21]} 18. Rad1 {[%emt 0:00:24]} Ba4 {[%emt 0:00:42]} 19. Rb1 {[%emt 0:00:24]} Bc6 {[%emt 0:00:06]} 20. Rbe1 {[%emt 0:00:52]} Bxd5 {[%emt 0:00:38]} 21. exd5 {[%emt 0:00:04]} Bd2 {[%emt 0:00:25]} 22. Rb1 {[%emt 0:00:36]} Be3+ {[%emt 0:00:27]} 23. Kh1 {[%emt 0:00:04]} Bd4 {[%emt 0:00:08]} 24. Rf3 {[%emt 0:00:24]} Kf8 {[%emt 0:00:43]} 25. Rh3 {[%emt 0:00:21]} Kg7 {[%emt 0:00:04]} 26. a4 {[%emt 0:00:16]} b6 {[%emt 0:01:03]} 27. b5 {[%emt 0:00:38]} Be5 {[%emt 0:00:23]} 1/2-1/2